bitfinex/quotes_ETHUSD_20241105
["timestamp","ask_amount","ask_price","bid_price","bid_amount"]
[1730783106155,4.12032,2427.0,2426.8,0.7629183]
[1730783106355,4.12032,2427.0,2426.4,4.12119]
[1730783106356,4.12041,2427.0,2426.5,4.12106]
[1730783106515,4.12041,2427.0,2426.7,0.8036]
[1730783108036,3.0,2427.1,2426.7,4.9244]
[1730783108377,3.0,2427.1,2426.8,0.29728468]
[1730783108525,7.12014,2427.1,2426.7,4.9244]
[1730783108731,7.12014,2427.1,2426.8,0.2974139]
[1730783109037,7.12014,2427.1,2426.7,4.9244]
[1730783109372,4.12033,2427.0,2426.8,0.29742616]
[1730783109667,4.12033,2427.0,2426.9,0.29742616]
[1730783109875,4.12033,2427.0,2426.7,0.8036]
[1730783110039,4.12033,2427.0,2426.8,0.29753319]
[1730783110247,4.12033,2427.0,2426.9,0.29759379]
[1730783110971,7.12014,2427.1,2426.9,0.29759379]
[1730783111172,7.12014,2427.1,2426.7,0.8036]
[1730783111473,7.12014,2427.1,2426.7,5.416868]
[1730783111766,7.12014,2427.1,2426.8,0.29760381]
[1730783111767,3.0,2427.1,2426.8,0.29760381]
[1730783111972,4.12015,2427.1,2426.9,0.29760381]
[1730783112125,4.12015,2427.1,2426.7,1.296048]
[1730783112330,4.12015,2427.1,2426.8,0.29760136]
[1730783112645,4.12015,2427.1,2426.9,0.29760136]
[1730783112835,4.12015,2427.1,2426.7,1.296048]
[1730783113035,4.12015,2427.1,2426.8,0.29760487]
[1730783113265,4.12015,2427.1,2426.9,0.29760487]
[1730783113570,4.12015,2427.1,2426.7,1.296048]
[1730783113787,4.12031,2427.0,2426.8,0.29760722]
[1730783114072,4.12031,2427.0,2426.9,0.29760722]
[1730783115065,4.12015,2427.1,2426.9,0.29760444]
[1730783115269,4.12015,2427.1,2426.7,0.8036]
[1730783115438,4.12015,2427.1,2426.8,0.29760651]
[1730783115633,8.24039,2427.1,2426.9,0.29760651]
[1730783115851,4.12031,2427.0,2426.7,0.8036]
[1730783116067,4.12031,2427.0,2426.8,0.29761019]
[1730783116250,4.12031,2427.0,2426.9,0.29761019]
[1730783116740,4.12031,2427.0,2426.9,0.29760909]
[1730783116990,4.12031,2427.0,2426.7,0.8036]
[1730783117270,4.12031,2427.0,2426.8,0.29760906]
[1730783117467,4.12031,2427.0,2426.7,0.8036]
[1730783117679,4.12031,2427.0,2426.8,0.29762156]
[1730783117835,4.12031,2427.0,2426.7,0.8036]
[1730783118041,4.12031,2427.0,2426.8,0.29762227]
[1730783118241,4.12031,2427.0,2426.9,0.2976321]
[1730783118638,4.12031,2427.0,2426.7,0.8036]
[1730783118860,4.12031,2427.0,2426.8,0.29763468]
[1730783119046,4.12031,2427.0,2426.7,0.8036]
[1730783119260,4.12031,2427.0,2426.8,0.29763791]
[1730783119486,4.12031,2427.0,2426.9,0.29763791]
[1730783119845,4.12031,2427.0,2426.7,0.8036]
[1730783120044,4.12031,2427.0,2426.8,0.29764255]
[1730783120258,4.12031,2427.0,2426.7,0.8036]
[1730783120444,4.12031,2427.0,2426.8,0.29764896]
[1730783120645,4.12031,2427.0,2426.7,0.8036]
[1730783120845,4.12031,2427.0,2426.8,0.29764907]
[1730783121159,4.12031,2427.0,2426.7,0.8036]
[1730783121362,4.12031,2427.0,2426.8,0.29764732]
[1730783121568,4.12031,2427.0,2426.7,0.8036]
[1730783121888,4.12031,2427.0,2426.8,0.29763721]
[1730783122066,4.12031,2427.0,2426.7,0.8036]
[1730783122381,4.12031,2427.0,2426.8,0.29763938]
[1730783122581,4.12031,2427.0,2426.7,0.8036]
[1730783122786,4.12031,2427.0,2426.8,0.297637]
[1730783123076,4.12031,2427.0,2426.9,0.29763564]
[1730783123685,4.12031,2427.0,2426.7,0.8036]
[1730783123846,4.12031,2427.0,2426.8,0.29764877]
[1730783124046,4.12031,2427.0,2426.7,0.8036]
[1730783124282,4.12031,2427.0,2426.8,0.29764923]
[1730783124588,4.12031,2427.0,2426.9,0.29766883]
[1730783125351,4.12015,2427.1,2426.9,0.29766883]
[1730783125566,4.12015,2427.1,2426.7,0.8036]
[1730783125951,4.12015,2427.1,2426.8,0.29767531]
[1730783126152,8.24043,2427.1,2426.8,0.29767531]
[1730783126357,4.12015,2427.1,2426.9,0.29767531]
[1730783126707,4.12015,2427.1,2426.7,4.92441]
[1730783126978,4.12015,2427.1,2426.8,0.29770231]
[1730783127184,4.12015,2427.1,2426.7,4.92441]
[1730783127185,4.12015,2427.1,2426.9,0.29770231]
[1730783127392,7.12015,2427.1,2427.0,0.29770231]
[1730783127545,4.11999,2427.2,2427.0,1.05300231]
[1730783127747,4.12007,2427.2,2427.0,0.7553]
[1730783128376,4.12007,2427.2,2427.1,0.29776982]
[1730783128651,4.12007,2427.2,2427.0,0.7553]
[1730783128995,1.11902125,2427.6,2427.1,0.29776914]
[1730783129148,4.47091125,2427.6,2427.2,0.29776914]
[1730783129350,4.47091125,2427.6,2427.2,0.7927]
[1730783129694,4.47091125,2427.6,2427.3,0.29767221]
[1730783129852,4.47091125,2427.6,2427.3,0.5953343]
[1730783130585,4.11953,2427.5,2427.3,0.29767221]
[1730783130786,4.11946,2427.5,2427.3,0.29767221]
[1730783131781,4.11963,2427.4,2427.3,0.29767221]
[1730783133570,4.11963,2427.4,2427.3,0.19767221]
[1730783135421,4.11987,2427.3,2427.0,0.8304]
[1730783135577,4.11963,2427.4,2427.0,0.8304]
[1730783136070,8.2394,2427.4,2427.0,0.8304]
[1730783136812,4.11988,2427.3,2427.0,0.8304]
[1730783137573,4.11963,2427.4,2427.0,0.8304]
[1730783137769,8.23939,2427.4,2427.0,0.8304]
[1730783138370,8.23934,2427.4,2427.0,0.8304]
[1730783138570,4.11963,2427.4,2427.0,0.8304]
[1730783138814,4.11981,2427.3,2427.0,0.8304]
[1730783141220,4.11963,2427.4,2427.1,0.11087664]
[1730783142129,7.11936,2427.6,2427.2,0.7941]
[1730783142421,8.23881,2427.6,2427.2,0.7941]
[1730783142603,4.11938,2427.6,2427.3,0.11086623]
[1730783142807,4.11938,2427.6,2427.2,0.7941]
[1730783142979,4.11938,2427.6,2427.4,0.11085583]
[1730783143185,4.11938,2427.6,2427.2,0.7941]
[1730783143504,4.11938,2427.6,2427.5,0.11085583]
[1730783143505,8.23875,2427.6,2427.5,0.11085583]
[1730783143817,5.023495,2427.6,2427.5,0.11085583]
[1730783143979,4.11956,2427.5,2427.2,0.7941]
[1730783145213,0.8025,2427.8,2427.2,0.7941]
[1730783145427,8.23875,2427.6,2427.2,0.7941]
[1730783145627,4.11931,2427.6,2427.2,0.7941]
[1730783145790,4.11949,2427.5,2427.2,0.7941]
[1730783147025,4.11931,2427.6,2427.2,0.7941]
[1730783147230,8.23875,2427.6,2427.2,0.7941]
[1730783147416,4.11976,2427.4,2427.2,0.7941]
[1730783148139,4.11976,2427.4,2427.0,0.7748]
[1730783148350,4.11976,2427.4,2427.1,0.2972749]
[1730783148649,4.11976,2427.4,2427.0,0.7748]
[1730783148806,4.11976,2427.4,2427.1,0.29727507]
[1730783149007,4.11976,2427.4,2427.0,0.7748]
[1730783149207,4.11976,2427.4,2427.1,0.29727159]
[1730783149431,4.11976,2427.4,2427.0,0.7748]
[1730783149705,4.11976,2427.4,2427.1,0.2972888]
[1730783149919,4.11976,2427.4,2427.0,0.7748]
[1730783150119,4.11976,2427.4,2427.1,0.29727614]
[1730783150347,4.11976,2427.4,2427.0,0.7748]
[1730783150528,4.11976,2427.4,2427.1,0.29730214]
[1730783150733,4.11976,2427.4,2427.0,4.89507]
[1730783150929,4.11976,2427.4,2427.1,0.29730066]
[1730783151247,4.11976,2427.4,2427.2,0.29733282]
[1730783151410,4.11976,2427.4,2427.0,4.89507]
[1730783151780,4.11976,2427.4,2427.1,0.29733356]
[1730783151942,4.11976,2427.4,2427.2,0.29733356]
[1730783152244,4.11976,2427.4,2427.0,4.89507]
[1730783152450,4.11976,2427.4,2427.1,0.29737113]
[1730783152610,9.142955,2427.6,2427.2,0.29737113]
[1730783152950,5.023505,2427.6,2427.3,0.29735357]
[1730783153248,5.023505,2427.6,2427.2,4.11996]
[1730783153453,4.11938,2427.6,2427.3,0.29738049]
[1730783153612,8.23877,2427.6,2427.1,4.12012]
[1730783153949,4.11929,2427.6,2427.2,0.29738439]
[1730783154123,4.11929,2427.6,2427.3,0.29738439]
[1730783154313,4.11929,2427.6,2427.2,4.11996]
[1730783154735,4.11929,2427.6,2427.3,0.29743247]
[1730783155757,4.11929,2427.6,2427.2,4.11996]
[1730783156044,4.11929,2427.6,2427.3,0.29749519]
[1730783156253,4.11929,2427.6,2427.4,0.29756197]
[1730783156422,4.11914,2427.7,2427.2,4.11996]
[1730783156624,0.8025,2427.8,2427.5,0.10695462]
[1730783156826,3.0199331,2428.2,2427.9,4.11876]
[1730783157042,4.92931,2428.3,2427.9,4.11876]
[1730783157043,0.8112,2428.3,2427.9,4.87346]
[1730783157218,0.8112,2428.3,2428.0,4.11858]
[1730783157419,4.92932,2428.3,2428.0,0.10676735]
[1730783158021,3.8112,2428.3,2428.0,0.10676735]
[1730783158221,0.8112,2428.3,2428.0,0.10676735]
[1730783159149,4.11844,2428.1,2428.0,0.10676735]
[1730783159460,4.1188,2427.9,2427.5,4.11935]
[1730783159619,4.1188,2427.9,2427.6,0.29705258]
[1730783159953,4.87802,2428.0,2427.5,4.11935]
[1730783160248,4.87802,2428.0,2427.6,0.29705604]
[1730783160455,4.11844,2428.1,2427.7,0.29705604]
[1730783160752,4.11844,2428.1,2427.5,5.83333846]
[1730783160955,4.11844,2428.1,2427.6,0.29703601]
[1730783161262,4.11844,2428.1,2427.6,4.11929]
[1730783161407,9.02927,2428.2,2427.8,0.7796]
[1730783161611,4.91089,2428.2,2427.8,0.7796]
[1730783162459,9.02932,2428.2,2427.8,0.7796]
[1730783162617,10.0115418,2428.2,2427.8,0.7796]
[1730783162815,5.8931118,2428.2,2427.8,0.7796]
[1730783163042,4.91089,2428.2,2427.6,0.7544]
[1730783163247,4.11858,2428.1,2427.6,4.87366]
[1730783163560,4.11858,2428.1,2427.6,4.77366]
[1730783166653,9.02928,2428.2,2427.7,4.11911]
[1730783166818,9.932208,2428.2,2427.7,4.11911]
[1730783167157,5.813818,2428.2,2427.7,4.11911]
[1730783167720,0.7926,2428.2,2427.8,4.11893]
[1730783168221,4.91088,2428.2,2427.7,4.11911]
[1730783168416,4.91088,2428.2,2427.7,4.11902]
[1730783168624,0.7926,2428.2,2427.8,4.11887]
[1730783169651,7.11811,2428.3,2427.9,0.7981]
[1730783169856,4.11838,2428.2,2427.9,0.7981]
[1730783170240,8.320366,2428.3,2427.9,0.7981]
[1730783170845,12.438606,2428.3,2427.9,0.7981]
[1730783171044,8.320366,2428.3,2427.9,0.7981]
[1730783171232,8.320366,2428.3,2428.0,0.10130797]
[1730783173055,4.11828,2428.2,2428.0,0.10130797]
[1730783173435,8.320366,2428.3,2428.0,0.10130797]
[1730783173837,4.202256,2428.3,2428.0,4.21990797]
[1730783174039,7.90433,2428.4,2428.0,4.21990797]
[1730783174945,7.90433,2428.4,2428.0,0.10130797]
[1730783175145,7.90433,2428.4,2428.0,4.21991797]
[1730783175363,3.0,2428.5,2428.1,4.11835]
[1730783175548,0.7909,2428.6,2428.2,4.88304]
[1730783175747,0.7909,2428.6,2428.2,4.98419203]
[1730783176351,4.9085,2428.6,2428.2,4.98419203]
[1730783176562,4.9085,2428.6,2428.2,0.86595203]
[1730783176790,4.11786,2428.5,2428.2,0.86595203]
[1730783176964,4.11786,2428.5,2428.2,0.10115203]
[1730783177174,1.693502,2428.6,2427.8,0.7925]
[1730783177175,4.89599,2428.2,2427.8,0.7925]
[1730783177857,4.11859,2428.1,2427.8,0.7925]
[1730783182083,4.89599,2428.2,2427.8,0.7925]
[1730783182084,0.7776,2428.2,2427.8,0.7925]
[1730783182377,4.89589,2428.2,2427.8,4.91144]
[1730783182545,9.01429,2428.2,2427.8,0.7925]
[1730783183143,4.89589,2428.2,2427.8,0.7925]
[1730783184789,4.89589,2428.2,2427.8,4.91144]
[1730783184953,3.8241,2428.4,2428.0,4.11846]
[1730783185282,0.8241,2428.4,2428.1,4.11838]
[1730783185992,3.0,2428.5,2428.1,4.11838]
[1730783186149,3.0,2428.5,2428.2,0.7887]
[1730783186349,3.0,2428.5,2428.2,0.88007585]
[1730783186651,4.11795,2428.4,2428.2,0.09137585]
[1730783186862,4.11795,2428.4,2428.0,4.88759]
[1730783187058,4.11795,2428.4,2428.3,0.09137585]
[1730783187396,4.11795,2428.4,2428.0,4.88759]
[1730783187691,4.11795,2428.4,2428.1,0.29753398]
[1730783187839,8.35791513,2428.5,2428.1,0.08837585]
[1730783188806,4.11795,2428.4,2428.1,0.08837585]
[1730783189686,8.35791513,2428.5,2428.1,0.08837585]
[1730783189885,8.35791513,2428.5,2428.2,0.29745104]
[1730783190126,8.35791513,2428.5,2428.2,0.08570918]
[1730783190610,8.35791513,2428.5,2428.0,4.88751]
[1730783190751,8.35791513,2428.5,2428.3,0.08570918]
[1730783190941,8.35791513,2428.5,2428.0,4.88751]
[1730783191145,7.11778,2428.5,2428.4,0.08570918]
[1730783191388,4.11807,2428.4,2428.0,0.769]
[1730783191595,4.11807,2428.4,2428.1,0.29739927]
[1730783191810,4.11807,2428.4,2428.0,4.8876]
[1730783192091,4.11807,2428.4,2428.1,0.29739947]
[1730783192250,4.11807,2428.4,2428.0,4.8876]
[1730783192452,4.11807,2428.4,2428.1,0.29737884]
[1730783192791,4.11807,2428.4,2428.0,4.8876]
[1730783192960,4.11807,2428.4,2428.1,0.29737932]
[1730783193160,4.11807,2428.4,2428.0,0.769]
[1730783193488,4.11818,2428.3,2428.1,0.2973645]
[1730783193693,4.11818,2428.3,2428.0,0.769]
[1730783193853,7.11788,2428.5,2428.1,0.29736561]
[1730783194150,4.911178,2428.4,2428.0,4.88761]
[1730783194348,4.911178,2428.4,2428.1,0.29735907]
[1730783194588,4.911178,2428.4,2428.0,0.769]
[1730783194777,4.11796,2428.4,2428.1,0.29733272]
[1730783194958,4.11796,2428.4,2428.0,0.769]
[1730783195287,4.11796,2428.4,2428.1,0.29733139]
[1730783195594,4.11796,2428.4,2428.0,0.769]
[1730783196083,7.11788,2428.5,2428.1,0.29731912]
[1730783196617,11.23576,2428.5,2428.0,4.88751]
[1730783196933,11.23573,2428.5,2428.0,4.88751]
[1730783198022,4.11802,2428.4,2428.0,0.769]
[1730783198527,4.11802,2428.4,2428.1,0.29731051]
[1730783198902,4.11802,2428.4,2428.0,4.88759]
[1730783199192,4.11802,2428.4,2428.1,0.29728996]
[1730783199374,4.11802,2428.4,2428.0,4.88759]
[1730783199576,4.11802,2428.4,2428.1,0.2972785]
[1730783199813,4.11802,2428.4,2428.0,4.8876]
[1730783200014,4.11802,2428.4,2428.1,0.2972782]
[1730783200209,4.11802,2428.4,2428.2,0.2972782]
[1730783200409,4.11802,2428.4,2428.0,4.8876]
[1730783200803,4.11802,2428.4,2428.1,0.29726765]
[1730783200999,4.11802,2428.4,2428.0,4.8876]
[1730783201203,4.11802,2428.4,2428.1,0.37730708]
[1730783201405,4.11802,2428.4,2428.1,0.08003751]
[1730783206349,8.23607,2428.4,2428.1,0.08003751]
[1730783206536,4.11802,2428.4,2428.1,0.08003751]
[1730783206738,4.93202,2428.6,2428.1,0.08003751]
[1730783206739,4.11777,2428.5,2428.1,0.08003751]
[1730783207063,4.11777,2428.5,2428.2,0.29724428]
[1730783207262,4.11777,2428.5,2428.0,4.88758]
[1730783207263,8.23562,2428.5,2428.0,4.88758]
[1730783207474,8.23563,2428.5,2428.3,0.08003751]
[1730783207654,8.23563,2428.5,2428.0,4.88758]
[1730783207836,4.11777,2428.5,2428.4,0.08003751]
[1730783208210,4.11777,2428.5,2428.0,4.88758]
[1730783208478,4.11777,2428.5,2428.1,0.29729043]
[1730783208629,4.11777,2428.5,2428.1,0.08003751]
[1730783209453,4.11797,2428.4,2428.1,0.08003751]
[1730783209965,4.11777,2428.5,2428.1,0.08003751]
[1730783210370,4.11777,2428.5,2428.2,0.29748263]
[1730783210672,4.11777,2428.5,2428.0,4.88751]
[1730783210873,4.11777,2428.5,2428.3,0.08003751]
[1730783211167,0.904959,2428.5,2428.1,4.11842]
[1730783211371,4.93195,2428.6,2428.4,0.08003751]
[1730783211670,4.11778,2428.5,2428.0,4.88751]
[1730783211866,8.23564,2428.5,2428.0,4.88751]
[1730783212070,4.11778,2428.5,2428.1,0.29752415]
[1730783212229,4.11778,2428.5,2428.0,4.88751]
[1730783212432,4.11778,2428.5,2428.1,0.29758393]
[1730783212633,4.11778,2428.5,2428.2,0.29758393]
[1730783212878,4.11778,2428.5,2428.0,4.88751]
[1730783213037,8.23563,2428.5,2428.1,0.2975837]
[1730783213375,8.23563,2428.5,2428.2,0.2975837]
[1730783213528,8.23563,2428.5,2428.0,4.88751]
[1730783213732,8.23563,2428.5,2428.1,0.29766949]
[1730783213932,8.23563,2428.5,2428.2,0.29766949]
[1730783214154,8.23563,2428.5,2428.0,4.88751]
[1730783214358,0.8143,2428.6,2428.0,4.88751]
[1730783214359,0.8143,2428.6,2428.1,0.29777789]
[1730783214558,0.8143,2428.6,2428.2,0.29777789]
[1730783214838,4.11789,2428.5,2428.0,4.88759]
[1730783215041,4.11789,2428.5,2428.1,0.77425343]
[1730783215234,4.11789,2428.5,2428.2,0.29787321]
[1730783215472,4.11789,2428.5,2428.0,4.88759]
[1730783215473,4.11789,2428.5,2428.3,0.29787321]
[1730783215655,4.11789,2428.5,2428.0,4.88759]
[1730783215847,4.11789,2428.5,2428.1,0.77448533]
[1730783216075,4.11789,2428.5,2428.2,0.29787488]
[1730783216280,4.11789,2428.5,2428.3,0.29787488]
[1730783216476,4.11789,2428.5,2428.0,4.88759]
[1730783216643,4.11789,2428.5,2428.4,0.08001671]
[1730783216844,5.022878,2428.5,2428.0,4.88759]
[1730783217155,4.11789,2428.5,2428.4,0.07976722]
[1730783217339,4.11789,2428.5,2428.0,4.88759]
[1730783217536,4.11789,2428.5,2428.4,0.07976722]
[1730783218362,4.11789,2428.5,2428.1,4.1184]
[1730783218674,4.11789,2428.5,2428.2,0.29788575]
[1730783218878,4.11789,2428.5,2428.2,0.07976722]
[1730783219181,4.11789,2428.5,2428.3,0.29788637]
[1730783219342,4.11789,2428.5,2428.2,0.07976722]
[1730783219543,4.9319,2428.6,2428.3,0.29789184]
[1730783219743,4.9319,2428.6,2428.2,0.07976722]
[1730783220046,4.9319,2428.6,2428.3,0.37765423]
[1730783220256,4.9319,2428.6,2428.3,0.07976722]
[1730783220443,4.9319,2428.6,2428.1,4.11834]
[1730783220654,4.9319,2428.6,2428.4,0.07976722]
[1730783220861,4.11776,2428.5,2428.0,4.88759]
[1730783221079,4.11776,2428.5,2428.1,4.89296828]
[1730783221282,4.94011,2428.4,2428.2,0.2978914]
[1730783221450,0.8221,2428.4,2427.9,4.11864]
[1730783221762,0.8221,2428.4,2428.0,4.88251]
[1730783222092,4.94012,2428.4,2427.9,4.78467131]
[1730783222252,4.94012,2428.4,2428.0,4.59517454]
[1730783222253,0.8221,2428.4,2428.0,4.59517454]
[1730783222447,0.8221,2428.4,2428.1,0.47664454]
[1730783222642,0.8221,2428.4,2428.0,4.11853]
[1730783222843,4.94006,2428.4,2428.1,0.47664407]
[1730783223047,5.845844,2428.4,2427.9,8.23735]
[1730783223248,4.93034,2428.1,2427.5,1.25523251]
[1730783223451,4.11879,2427.9,2427.6,0.47660067]
[1730783223699,4.11879,2427.9,2427.7,0.47660067]
[1730783223845,4.11879,2427.9,2427.5,4.87815]
[1730783224050,4.11879,2427.9,2427.6,0.47665943]
[1730783224350,4.11879,2427.9,2427.5,4.87815]
[1730783224581,4.11879,2427.9,2427.6,0.47634024]
[1730783224765,4.11863,2428.0,2427.5,4.87815]
[1730783225100,4.11863,2428.0,2427.6,0.47633679]
[1730783225253,4.11863,2428.0,2427.5,6.59082312]
[1730783225453,4.11863,2428.0,2427.6,0.47616674]
[1730783225789,4.11863,2428.0,2427.5,6.59082312]
[1730783225992,4.11863,2428.0,2427.6,0.47616718]
[1730783226198,4.11863,2428.0,2427.5,6.59082312]
[1730783226887,9.04889,2428.1,2427.6,4.11927]
[1730783227288,9.04889,2428.1,2427.5,2.47137312]
[1730783227289,4.11872,2428.0,2427.5,2.47137312]
[1730783227787,4.11872,2428.0,2427.5,6.59073312]
[1730783230376,4.11872,2428.0,2427.6,4.11928]
[1730783231253,4.11872,2428.0,2427.7,0.0466422]
[1730783231686,0.905784,2428.4,2427.9,1.71267312]
[1730783231687,0.8047,2428.3,2427.9,1.71267312]
[1730783231883,0.8047,2428.3,2427.9,5.83136312]
[1730783232091,4.92246,2428.5,2428.0,4.1652022]
[1730783232275,0.8047,2428.5,2428.1,4.11842]
[1730783232592,0.8047,2428.5,2428.2,4.11826]
[1730783232752,0.8047,2428.5,2428.2,4.1649022]
[1730783232959,0.8047,2428.5,2428.2,0.0466422]
[1730783233159,4.92247,2428.5,2428.2,0.0466422]
[1730783233792,0.8047,2428.5,2428.2,0.0466422]
[1730783235756,4.11807,2428.4,2428.2,0.0466422]
[1730783235957,7.9461,2428.3,2428.2,0.0466422]
[1730783236388,7.9461,2428.3,2427.6,0.29715424]
[1730783236389,4.88676,2427.8,2427.6,0.29715424]
[1730783236562,4.88676,2427.8,2427.4,6.66058312]
[1730783236759,4.88676,2427.8,2427.7,0.04351107]
[1730783237100,0.7678,2427.8,2427.7,0.04352146]
[1730783237298,0.7678,2427.8,2427.4,6.66058312]
[1730783237502,0.7678,2427.8,2427.7,0.04352146]
[1730783237661,0.7678,2427.8,2427.4,11.50561347]
[1730783237862,0.7678,2427.8,2427.7,0.04381225]
[1730783238059,0.7678,2427.8,2427.4,11.50561347]
[1730783238275,0.7678,2427.8,2427.7,0.04381225]
[1730783238482,0.7678,2427.8,2427.4,11.50561347]
[1730783238683,0.7678,2427.8,2427.7,0.04381225]
[1730783238887,0.7678,2427.8,2427.4,11.50561347]
[1730783239169,0.7678,2427.8,2427.7,0.04399922]
[1730783239368,0.7678,2427.8,2427.4,7.38607347]
[1730783239705,0.7678,2427.8,2427.5,0.29709946]
[1730783239877,0.7678,2427.8,2427.5,0.04399922]
[1730783242813,0.7678,2427.8,2427.4,1.71267312]
[1730783242814,4.11915,2427.7,2427.4,1.71267312]
[1730783243015,4.11915,2427.7,2427.6,0.04403039]
[1730783243302,4.88687,2427.8,2427.6,0.04403039]
[1730783243473,4.88687,2427.8,2427.4,1.71267312]
[1730783243474,9.00594,2427.8,2427.4,1.71267312]
[1730783243679,4.11939,2427.6,2427.2,0.7827]
[1730783243898,4.11939,2427.6,2427.3,2.0097483]
[1730783244103,4.11955,2427.5,2427.4,0.29706914]
[1730783244266,4.11955,2427.5,2426.8,0.85793831]
[1730783244267,4.94105,2427.5,2427.1,1.71267312]
[1730783244466,4.94105,2427.5,2427.2,0.29702466]
[1730783244706,4.11879,2427.9,2427.3,2.53677312]
[1730783244907,4.11879,2427.9,2427.5,1.71267312]
[1730783245267,0.8215,2428.0,2427.6,4.11926]
[1730783245491,4.94012,2428.0,2427.6,4.11926]
[1730783245930,4.94012,2428.0,2427.5,6.65752312]
[1730783246427,0.8215,2428.0,2427.6,4.15726641]
[1730783247219,4.94011,2428.0,2427.6,4.15726641]
[1730783247429,0.8215,2428.0,2427.6,0.03806641]
[1730783247720,4.11887,2427.9,2427.6,0.03806641]
[1730783249915,0.8215,2428.0,2427.6,0.03806641]
[1730783250632,4.1188,2427.9,2427.6,0.03806641]
[1730783251486,4.94011,2428.0,2427.6,0.03806641]
[1730783251927,4.94011,2428.0,2427.6,4.11929]
[1730783252907,4.94011,2428.0,2427.5,5.83211312]
[1730783253108,4.94011,2428.0,2427.6,0.29717817]
[1730783253431,4.94011,2428.0,2427.5,5.83211312]
[1730783253592,4.94011,2428.0,2427.6,0.29720007]
[1730783253788,0.8215,2428.0,2427.6,4.11928]
[1730783253988,4.11821,2428.3,2427.8,4.11895]
[1730783254688,0.7986,2428.6,2428.2,5.83094312]
[1730783255130,4.91624,2428.6,2428.2,5.83094312]
[1730783255648,4.91624,2428.6,2428.2,1.71267312]
[1730783255793,4.91624,2428.6,2428.2,2.50087312]
[1730783255989,0.7986,2428.6,2428.2,6.61898312]
[1730783256190,0.7986,2428.6,2428.4,1.71267312]
[1730783256427,4.11726,2428.8,2428.4,1.71267312]
[1730783256428,4.94876,2428.8,2428.4,1.71267312]
[1730783258823,4.11722,2428.9,2428.5,4.11767]
[1730783258824,3.0,2428.9,2428.5,4.11767]
[1730783259030,7.11709,2428.9,2428.4,5.83047312]
[1730783259698,7.11709,2428.9,2428.5,4.11771]
[1730783260304,7.11709,2428.9,2428.4,5.83047312]
[1730783260504,7.11709,2428.9,2428.5,4.11776]
[1730783261126,3.0,2428.9,2428.5,4.11776]
[1730783261493,3.0,2428.9,2428.6,1.71267312]
[1730783261734,3.0,2428.9,2428.6,2.53377312]
[1730783261891,11.23432,2428.9,2428.6,2.53377312]
[1730783262098,4.11726,2428.8,2428.4,6.65157312]
[1730783262397,4.11726,2428.8,2428.5,0.66515731]
[1730783262612,7.11709,2428.9,2428.5,0.66515731]
[1730783263943,4.1173,2428.8,2428.5,0.66515731]
[1730783264115,4.1173,2428.8,2428.4,0.8211]
[1730783264629,0.8185,2428.7,2428.0,4.90441]
[1730783264814,0.8185,2428.3,2427.9,5.83144312]
[1730783266596,4.92397,2428.5,2428.1,1.71267312]
[1730783268428,4.11795,2428.4,2428.1,1.71267312]
[1730783268805,4.92398,2428.5,2428.1,1.71267312]
[1730783270341,4.92398,2428.5,2428.1,5.83110312]
[1730783270497,4.92398,2428.5,2428.1,1.71267312]
[1730783270702,4.11801,2428.4,2428.1,1.71267312]
[1730783273103,0.8062,2428.5,2428.2,0.7798]
[1730783274210,4.11768,2428.6,2428.2,0.7798]
[1730783274411,7.89706,2428.7,2428.2,4.89792]
[1730783275104,4.1178,2428.5,2428.2,0.7798]
[1730783275449,4.11771,2428.6,2428.2,0.7798]
[1730783277411,1.201451,2428.6,2428.0,0.8133]
[1730783277608,1.201451,2428.6,2427.7,0.01]
[1730783277609,0.7741,2428.2,2427.8,4.93213]
[1730783277810,0.7741,2428.2,2427.8,10.76366312]
[1730783278014,0.7741,2428.2,2427.9,4.41562876]
[1730783278319,0.7741,2428.2,2427.9,4.11877]
[1730783280310,0.7741,2428.2,2428.0,0.2970402]
[1730783280537,0.7741,2428.2,2427.9,4.11877]
[1730783280947,0.7741,2428.2,2428.0,0.19704046]
[1730783281111,0.7741,2428.2,2427.9,4.11877]
[1730783282347,0.7741,2428.2,2427.8,4.93223]
[1730783282641,0.7741,2428.2,2427.8,6.64490312]
[1730783283013,5.793407,2428.2,2427.7,4.11902]
[1730783283218,4.89238,2428.2,2427.7,4.11902]
[1730783283665,4.11853,2428.1,2427.6,4.92137]
[1730783283871,4.11853,2428.1,2427.7,0.47571165]
[1730783284179,0.8316,2428.0,2427.3,2.46917312]
[1730783284392,4.11903,2427.8,2427.4,0.47569651]
[1730783284551,4.11903,2427.8,2427.3,2.46917312]
[1730783284743,4.11903,2427.8,2427.4,0.47571632]
[1730783284941,4.11878,2427.9,2427.3,6.58886312]
[1730783285148,4.95031,2428.0,2427.4,4.59525445]
[1730783285353,4.11897,2427.8,2427.3,6.58895312]
[1730783285643,4.11897,2427.8,2427.4,0.4755352]
[1730783285842,4.11897,2427.8,2427.3,6.58895312]
[1730783286066,4.11897,2427.8,2427.4,0.47553092]
[1730783286275,4.11897,2427.8,2427.4,4.11962]
[1730783286939,4.95031,2428.0,2427.4,4.11962]
[1730783287156,4.95031,2428.0,2427.5,5.83202312]
[1730783287353,9.06908,2428.0,2427.5,5.83202312]
[1730783287583,4.95031,2428.0,2427.5,5.83202312]
[1730783288188,9.06902,2428.0,2427.5,5.83202312]
[1730783288398,4.95031,2428.0,2427.5,5.83202312]
[1730783289100,4.1184,2428.2,2427.7,5.83170312]
[1730783290299,4.1184,2428.2,2427.7,1.71267312]
[1730783290469,4.1184,2428.2,2427.7,5.83179312]
[1730783290677,4.11837,2428.2,2427.7,5.83179312]
[1730783291090,4.11837,2428.2,2427.7,1.71267312]
[1730783291291,4.11853,2428.1,2427.7,1.71267312]
[1730783292175,8.23675,2428.2,2427.7,5.83178312]
[1730783292714,4.11849,2428.1,2427.7,5.83178312]
[1730783292910,4.11844,2428.1,2427.7,1.71267312]